bitfinex-derivatives/quotes_SOLF0:USTF0_20250228
["timestamp","ask_amount","ask_price","bid_price","bid_amount"]
[1740773309275,6.87060261,146.53,146.49,4.935e-05]
[1740773309472,12.6,146.52,146.49,4.935e-05]
[1740773309878,6.8269,146.51,146.49,4.935e-05]
[1740773310978,6.8267,146.51,146.49,4.935e-05]
[1740773311175,12.6,146.52,146.49,4.935e-05]
[1740773311679,6.8271,146.5,146.49,4.935e-05]
[1740773312874,6.827,146.51,146.49,4.935e-05]
[1740773313580,0.04440261,146.53,146.49,4.935e-05]
[1740773314181,0.04440261,146.53,146.5,6.8271]
[1740773314382,0.04440261,146.53,146.49,4.935e-05]
[1740773314582,0.04440261,146.53,146.51,6.8263]
[1740773314778,0.04440261,146.53,146.49,1.84514935]
[1740773315286,0.04440261,146.53,146.51,6.8264]
[1740773315486,0.04440261,146.53,146.49,1.84514935]
[1740773315687,0.04440261,146.53,146.52,6.8262]
[1740773316388,12.6,146.6,146.49,18.20244935]
[1740773316583,12.6,146.6,146.49,18.2024]
[1740773316786,40.85556328,146.62,146.49,18.2024]
[1740773316986,40.85556328,146.62,146.54,6.8249]
[1740773317483,0.04531983,146.59,146.57,0.0513372]
[1740773317685,0.04531983,146.59,146.49,18.2024]
[1740773317987,12.6,146.62,146.57,0.05022084]
[1740773318187,12.6,146.62,146.49,18.2024]
[1740773318389,0.04714797,146.61,146.58,0.04336609]
[1740773318686,0.0502732,146.61,146.58,0.04625666]
[1740773327899,6.8226,146.6,146.58,0.04625666]
[1740773328200,0.0502732,146.61,146.58,0.04625666]
[1740773330197,6.8226,146.6,146.58,0.04625666]
[1740773331302,0.0502732,146.61,146.58,0.04625666]
[1740773331800,6.8725732,146.61,146.58,0.04625666]
[1740773333603,0.0502732,146.61,146.58,0.04625666]
[1740773335712,0.0502732,146.61,146.58,6.86965666]
[1740773338014,0.0502732,146.61,146.58,0.04625666]
[1740773338709,0.0502732,146.61,146.58,6.86965666]
[1740773339114,0.0502732,146.61,146.58,0.04625666]
[1740773339716,0.0502732,146.61,146.58,6.86945666]
[1740773342114,0.0502732,146.61,146.58,0.04625666]
[1740773342719,0.0502732,146.61,146.59,6.8225]
[1740773342919,0.0502732,146.61,146.58,0.04625666]
[1740773343310,0.0502732,146.61,146.6,6.8225]
[1740773343512,6.8199,146.66,146.58,0.04625666]
[1740773344115,6.8199,146.66,146.62,6.8215]
[1740773344717,0.04297475,146.65,146.63,0.05001177]
[1740773344920,0.04297475,146.65,146.64,6.8206]
[1740773345217,0.04297475,146.65,146.63,0.05001177]
[1740773346422,12.62297475,146.65,146.63,0.05001177]
[1740773347719,6.8206,146.64,146.63,0.05001177]
[1740773349025,19.44327475,146.65,146.63,0.05001177]
[1740773350021,6.8206,146.64,146.63,0.05001177]
[1740773352522,12.62297475,146.65,146.63,0.05001177]
[1740773358928,0.04297475,146.65,146.64,6.8206]
[1740773361236,28.25556328,146.7,146.68,6.8186]
[1740773361426,40.83556328,146.7,146.64,3.7252]
[1740773361628,12.58,146.7,146.64,3.7252]
[1740773361828,12.58,146.7,146.66,6.8194]
[1740773362327,12.58,146.7,146.66,6.8196]
[1740773362631,0.05134596,146.69,146.67,0.04461446]
[1740773363425,0.05134596,146.69,146.67,6.86351446]
[1740773363930,0.05134596,146.69,146.68,6.8187]
[1740773365930,0.05134596,146.69,146.67,0.04461446]
[1740773367927,6.86984596,146.69,146.67,0.04461446]
[1740773368322,0.05134596,146.69,146.67,0.04461446]
[1740773368526,6.8187,146.68,146.67,0.04461446]
[1740773368933,12.58,146.68,146.67,0.04461446]
[1740773369428,19.3987,146.68,146.67,0.04461446]
[1740773370434,12.58,146.68,146.67,0.04461446]
[1740773371933,19.3987,146.68,146.67,0.04461446]
[1740773372333,12.58,146.68,146.64,15.9]
[1740773372730,6.8201,146.65,146.64,15.9]
[1740773376343,0.05030596,146.66,146.64,15.9]
[1740773376941,6.87000596,146.66,146.64,15.9]
[1740773377439,6.8201,146.65,146.64,15.9]
[1740773378843,0.05030596,146.66,146.64,15.9]
[1740773381842,0.05030596,146.66,146.63,6.86411792]
[1740773384445,0.05030596,146.66,146.65,6.8201]
[1740773386044,12.58,146.68,146.67,6.8192]
[1740773387448,12.58,146.68,146.66,0.04622506]
[1740773387649,0.04585279,146.69,146.66,0.04622506]
[1740773387949,0.04585279,146.69,146.66,6.86562506]
[1740773388252,0.04585279,146.69,146.66,0.04622506]
[1740773389345,0.04585279,146.69,146.66,6.86562506]
[1740773389740,0.04585279,146.69,146.66,0.04622506]
[1740773392042,0.04585279,146.69,146.66,6.86562506]
[1740773392246,0.04585279,146.69,146.66,0.04622506]
[1740773395340,0.04585279,146.69,146.66,6.86562506]
[1740773395847,0.04585279,146.69,146.66,0.04622506]
[1740773396247,6.86435279,146.69,146.66,0.04622506]
[1740773397150,6.86425279,146.69,146.66,0.04622506]
[1740773397343,0.04585279,146.69,146.66,0.04622506]
[1740773399054,6.86415279,146.69,146.66,0.04622506]
[1740773399352,0.04585279,146.69,146.66,0.04622506]
[1740773399953,0.04585279,146.69,146.66,6.86562506]
[1740773401954,0.04585279,146.69,146.66,0.04622506]
[1740773402652,6.8192,146.67,146.66,0.04622506]
[1740773403857,6.8207,146.64,146.58,5.6101]
[1740773404052,12.56,146.65,146.58,5.6101]
[1740773404850,12.56,146.65,146.53,192.0]
[1740773405055,0.04614386,146.63,146.6,0.04577692]
[1740773405455,6.86754386,146.63,146.6,0.04577692]
[1740773406759,6.822,146.61,146.6,0.04577692]
[1740773407057,0.04614386,146.63,146.54,3.7961]
[1740773407251,14.339,146.62,146.5,37.69156938]
[1740773407457,6.823,146.59,146.52,6.8258]
[1740773408262,0.0434053,146.57,146.54,0.04923321]
[1740773408559,12.6034053,146.57,146.54,0.04923321]
[1740773411558,19.4274053,146.57,146.54,0.04923321]
[1740773411754,12.6034053,146.57,146.52,12.87]
[1740773411957,3.717,146.56,146.52,12.87]
[1740773412156,3.717,146.56,146.52,9.9819]
[1740773412456,3.717,146.56,146.52,9.7217]
[1740773412858,6.8257,146.53,146.52,9.7217]
[1740773413269,3.717,146.56,146.52,9.7217]
[1740773413565,0.04327512,146.54,146.52,9.7217]
[1740773415268,6.86857512,146.54,146.52,9.7217]
[1740773416570,0.04327512,146.54,146.52,9.7217]
[1740773418974,0.04327512,146.54,146.52,16.5478]
[1740773419474,0.04327512,146.54,146.53,6.8257]
[1740773420077,0.04327512,146.54,146.52,16.5477]
[1740773420477,0.04327512,146.54,146.52,9.7217]
[1740773426082,0.04327512,146.54,146.53,6.8257]
[1740773428176,12.58,146.58,146.55,6.8244]
[1740773428372,16.1723,146.61,146.55,6.8244]
[1740773429181,6.8225,146.6,146.55,6.8244]
[1740773429481,0.04411502,146.59,146.57,0.04458278]
[1740773432883,6.86741502,146.59,146.57,0.04458278]
[1740773433084,0.04411502,146.59,146.57,0.04458278]
[1740773433282,0.04411502,146.59,146.52,9.7217]
[1740773433980,6.8252,146.55,146.52,9.7217]
[1740773434284,12.58,146.54,146.52,9.7217]
[1740773434484,12.58,146.54,146.52,9.76756639]
[1740773435379,0.04298546,146.55,146.52,9.76756639]
[1740773435781,0.04298546,146.55,146.53,6.8257]
[1740773436887,0.04298546,146.55,146.52,9.76756639]
[1740773437589,6.86798546,146.55,146.52,9.76756639]
[1740773438085,6.8253,146.54,146.52,9.76756639]
[1740773438284,12.58,146.54,146.52,9.76756639]
[1740773439886,6.8257,146.53,146.52,9.76756639]
[1740773440083,12.58,146.54,146.52,9.76756639]
[1740773440685,6.8257,146.53,146.52,9.76756639]
[1740773441183,6.8257,146.53,146.52,0.04586639]
[1740773441388,16.2185,146.54,146.44,6.8299]
[1740773441583,234.6985,146.54,146.43,5.4107]
[1740773441791,6.8274,146.5,146.43,12.2407]
[1740773441980,6.8274,146.5,146.43,5.4107]
[1740773442185,12.58,146.49,146.43,5.4107]
[1740773442488,0.0478917,146.47,146.45,0.04822201]
[1740773442988,0.0478917,146.47,146.46,6.829]
[1740773443186,0.0478917,146.47,146.45,0.04822201]
[1740773445796,6.829,146.46,146.45,0.04822201]
[1740773445991,0.0478917,146.47,146.38,5.5769]
[1740773446289,1.18087521,146.48,146.37,11.27]
[1740773446494,6.8318,146.4,146.37,11.27]
[1740773446788,19.4118,146.4,146.37,11.27]
[1740773447192,19.45567555,146.4,146.37,11.31534056]
[1740773450598,6.8327,146.39,146.37,11.31534056]
[1740773453399,6.8327,146.38,146.37,11.31534056]
[1740773456304,6.8338,146.36,146.26,5.5636]
[1740773456505,12.58,146.35,146.26,5.5636]
[1740773456906,12.58,146.35,146.29,6.8368]
[1740773457404,0.04399189,146.33,146.31,0.04759563]
[1740773460415,0.04399189,146.33,146.32,6.8355]
[1740773460711,12.58,146.35,146.32,1.8566]
[1740773460906,12.58,146.35,146.34,6.8346]
[1740773461112,12.58,146.35,146.32,3.7076]
[1740773461511,12.58,146.35,146.32,1.8566]
[1740773461714,12.63137673,146.35,146.32,1.8566]
[1740773461914,12.63137673,146.35,146.33,6.8348]
[1740773462305,0.05137673,146.35,146.32,3.664]
[1740773462510,12.58,146.39,146.32,3.664]
[1740773463513,0.05224091,146.37,146.34,0.04417729]
[1740773464311,0.05224091,146.37,146.35,6.8341]
[1740773464513,0.05224091,146.37,146.34,0.04417729]
[1740773465213,19.411,146.42,146.34,0.04417729]
[1740773465415,12.58,146.42,146.37,6.8329]
[1740773465616,6.8316,146.41,146.37,6.8329]
[1740773465915,12.58,146.42,146.32,3.664]
[1740773466118,12.58,146.42,146.39,6.8322]
[1740773466312,0.04436927,146.4,146.39,6.8322]
[1740773467319,0.04436927,146.4,146.38,0.04727932]
[1740773468012,0.04436927,146.4,146.38,6.87957932]
[1740773468217,0.04436927,146.4,146.38,0.04727932]
[1740773469019,0.04436927,146.4,146.39,6.8322]
[1740773469214,0.04436927,146.4,146.38,0.04727932]
[1740773469718,0.04436927,146.4,146.38,6.87967932]
[1740773469919,0.04436927,146.4,146.38,0.04727932]
[1740773470110,218.56,146.44,146.38,0.04727932]
[1740773470315,218.56,146.44,146.43,6.8304]
[1740773470619,6.8288,146.47,146.39,1.8951]
[1740773470815,6.829,146.46,146.43,6.8301]
[1740773471021,6.829,146.46,146.4,1.8146]
[1740773471320,0.0446608,146.44,146.42,0.04699312]
[1740773471521,12.58,146.48,146.42,0.04699312]
[1740773471716,0.04484901,146.44,146.42,0.04699312]
[1740773471916,0.04484901,146.44,146.43,6.8302]
[1740773472316,0.8751215,146.49,146.42,0.04699312]
[1740773472517,12.58,146.51,146.46,6.8287]
[1740773472917,12.58,146.51,146.4,1.8146]
[1740773473221,12.58,146.51,146.47,6.8282]
[1740773473518,0.04807236,146.5,146.48,0.04641397]
[1740773473719,19.4067,146.51,146.46,6.8287]
[1740773473916,0.05189813,146.5,146.48,0.04598322]
[1740773474820,6.8276,146.49,146.48,0.04598322]
[1740773475119,1.18110822,146.49,146.39,1.8951]
[1740773475320,3.5109,146.48,146.39,1.8951]
[1740773475713,6.8303,146.44,146.39,1.8951]
[1740773475918,12.58,146.43,146.39,1.8951]
[1740773476114,12.62644305,146.43,146.4,0.05172372]
[1740773477023,12.62644305,146.43,146.4,6.88312372]
[1740773477220,12.62644305,146.43,146.4,0.05172372]
[1740773478421,12.62644305,146.43,146.4,6.88342372]
[1740773479528,12.62644305,146.43,146.42,6.8308]
[1740773479722,0.04644305,146.43,146.42,6.8308]
[1740773480020,12.58,146.47,146.4,3.70512372]
[1740773480226,12.58,146.49,146.43,6.83]
[1740773480726,6.8298,146.45,146.4,10.4849]
[1740773481025,12.58,146.49,146.41,0.04910019]
[1740773481026,0.04876059,146.44,146.41,0.04910019]
[1740773481226,12.62876059,146.44,146.41,0.04910019]
[1740773481818,6.8308,146.42,146.41,0.04910019]
[1740773482229,12.62876059,146.44,146.41,0.04910019]
[1740773482632,19.45896059,146.44,146.41,0.04910019]
[1740773482828,12.62876059,146.44,146.41,0.04910019]
[1740773483226,6.8308,146.42,146.41,0.04910019]
[1740773483428,231.28876059,146.44,146.37,3.73]
[1740773483624,6.8326,146.39,146.37,3.73]
[1740773483828,12.58,146.39,146.37,3.73]
[1740773484532,12.62764888,146.39,146.37,3.77979888]
[1740773484930,6.8327,146.38,146.37,0.89029888]
[1740773486132,6.8332,146.37,146.3,10.6011]
[1740773486329,6.8332,146.37,146.3,6.8363]
[1740773486728,6.8337,146.36,146.29,6.8368]
[1740773487132,0.04607587,146.34,146.31,0.04790154]
[1740773487430,12.62607587,146.34,146.31,0.04790154]
[1740773487835,231.32607587,146.34,146.26,37.69156938]
[1740773488032,6.8354,146.33,146.26,37.69156938]
[1740773488234,231.28,146.34,146.23,5.5504]
[1740773489235,0.04304376,146.3,146.27,0.04513225]
[1740773489431,12.58,146.29,146.27,0.04513225]
[1740773492034,19.4172,146.29,146.27,0.04513225]
[1740773492835,12.58,146.29,146.27,0.04513225]
[1740773495039,19.417,146.29,146.27,0.04513225]
[1740773495835,12.58,146.29,146.27,0.04513225]
[1740773496543,6.8374,146.28,146.27,0.04513225]
[1740773496935,12.58,146.29,146.27,0.04513225]
[1740773497133,19.4171,146.29,146.27,0.04513225]
[1740773498041,0.04304376,146.3,146.27,0.04513225]
[1740773499735,0.04304376,146.3,146.27,6.88283225]
[1740773500245,0.04304376,146.3,146.27,0.04513225]
[1740773502350,0.04304376,146.3,146.27,6.88293225]
[1740773502752,0.04304376,146.3,146.27,0.04513225]
[1740773507845,6.87954376,146.3,146.27,0.04513225]
[1740773508447,0.04304376,146.3,146.27,0.04513225]
[1740773509043,6.8371,146.29,146.27,0.04513225]
[1740773509248,0.04304376,146.3,146.27,0.04513225]
[1740773509451,1.85444376,146.3,146.27,0.04513225]
[1740773509653,1.85444376,146.3,146.2,1.83]
[1740773509952,1.8114,146.3,146.21,6.8406]
[1740773510349,6.8378,146.28,146.22,6.8402]
[1740773510853,0.0457035,146.26,146.24,0.04883392]
[1740773511051,12.58,146.25,146.24,0.04883392]
[1740773511455,12.58,146.25,146.24,6.88813392]
[1740773511646,0.0457035,146.26,146.24,0.04883392]
[1740773512151,0.0457035,146.26,146.25,6.8388]
[1740773513149,12.58,146.32,146.29,6.8367]
[1740773513354,12.58,146.32,146.25,3.6851]
[1740773513757,12.58,146.32,146.28,6.8372]
[1740773514245,12.58,146.32,146.25,3.6851]
[1740773514246,0.04550816,146.31,146.29,0.05011556]
[1740773515052,0.04550816,146.31,146.29,6.88681556]
[1740773515451,0.04550816,146.31,146.29,0.05011556]
[1740773516156,0.04550816,146.31,146.29,6.88671556]
[1740773517160,0.04550816,146.31,146.3,6.8365]
[1740773517555,0.04550816,146.31,146.29,0.05011556]
[1740773518857,0.04550816,146.31,146.29,6.88681556]
[1740773519057,0.04550816,146.31,146.29,0.05011556]
[1740773519253,218.86,146.35,146.29,0.05011556]
[1740773519858,30.14306189,146.42,146.29,0.05011556]
[1740773520059,232.60173913,146.41,146.34,6.8343]
[1740773520260,1.18173913,146.4,146.26,1.8188]
[1740773520561,0.04367353,146.39,146.31,6.8358]
[1740773520761,1.18173913,146.4,146.32,0.0470662]
[1740773520951,0.0450346,146.36,146.32,0.0470662]
[1740773521157,6.8788346,146.36,146.32,0.0470662]
[1740773521560,12.58,146.35,146.32,0.0470662]
[1740773521761,6.835,146.33,146.32,0.0470662]
[1740773522663,12.58,146.35,146.32,0.0470662]
[1740773523260,6.835,146.33,146.32,0.0470662]
[1740773523761,6.835,146.34,146.32,0.0470662]
[1740773526768,19.4143,146.35,146.32,0.0470662]
[1740773526962,0.0450346,146.36,146.32,0.0470662]
[1740773527160,12.58,146.35,146.32,0.0470662]
[1740773527762,6.8349,146.34,146.32,0.0470662]
[1740773530265,6.8346,146.34,146.32,0.0470662]
[1740773531565,6.835,146.33,146.32,0.0470662]
[1740773532567,6.8349,146.34,146.32,0.0470662]
[1740773534764,19.4144,146.35,146.32,0.0470662]
[1740773534962,12.58,146.35,146.32,0.0470662]
[1740773535163,0.0450346,146.36,146.32,0.0470662]
[1740773535364,12.6250346,146.36,146.32,0.0470662]
[1740773535967,12.6250346,146.36,146.32,6.8825662]
[1740773536767,0.0450346,146.36,146.32,6.8825662]
[1740773536968,12.6250346,146.36,146.32,6.8825662]
[1740773537268,19.4590346,146.36,146.32,0.0470662]
[1740773539171,12.6250346,146.36,146.32,0.0470662]
[1740773540270,6.835,146.33,146.32,0.0470662]
[1740773541979,6.8375,146.28,146.22,37.60499498]
[1740773542170,12.58,146.27,146.22,37.60499498]
[1740773542975,0.04466338,146.26,146.23,0.04423442]
[1740773543975,6.8393,146.24,146.23,0.04423442]
[1740773544174,0.04466338,146.26,146.23,0.04423442]
[1740773545768,6.8388,146.25,146.23,0.04423442]
[1740773545973,0.04466338,146.26,146.23,0.04423442]
[1740773546373,6.8393,146.24,146.23,0.04423442]
[1740773547380,0.04466338,146.26,146.17,1.7579]
[1740773547583,6.8405,146.22,146.17,1.7579]
[1740773547775,12.58,146.21,146.17,1.7579]
[1740773547970,6.8419,146.19,146.11,38.04110102]
[1740773548182,231.44,146.21,146.12,1.7422]
[1740773548576,0.04359557,146.18,146.15,0.05188728]
[1740773552785,6.88599557,146.18,146.15,0.05188728]
[1740773552990,0.04359557,146.18,146.15,0.05188728]
[1740773553389,0.04359557,146.18,146.06,9.40124874]
[1740773553590,1.17879155,146.2,146.06,9.40124874]
[1740773553892,13.0156511,146.2,146.06,9.40124874]
[1740773554190,1.17879155,146.19,146.06,9.40124874]
[1740773554387,6.8452,146.12,146.05,3.6198]
[1740773554584,231.52,146.11,146.05,3.6198]
[1740773554783,231.52,146.11,146.07,0.04388105]
[1740773554987,0.043296,146.09,146.07,0.04388105]
[1740773556393,218.94,146.11,146.07,0.04388105]
[1740773557596,0.0469563,146.1,146.07,0.04388105]
[1740773557789,0.0469563,146.1,146.07,6.89078105]
[1740773557989,0.0469563,146.1,146.07,0.04388105]
[1740773558389,219.04,146.22,146.07,0.04388105]
[1740773558584,102.11821039,146.2,146.03,12.58]
[1740773559384,6.8427,146.17,146.1,6.8456]
[1740773559585,0.04993583,146.13,146.1,6.89214502]
[1740773561296,0.04993583,146.13,146.11,6.8453]
[1740773562496,0.04993583,146.13,146.1,0.04654502]
[1740773562695,0.04993583,146.13,146.12,6.8449]
[1740773569198,0.04993583,146.13,146.11,6.8452]
[1740773569497,0.04993583,146.13,146.1,0.04654502]
[1740773569799,0.04993583,146.13,146.1,6.89224502]
[1740773572102,0.04993583,146.13,146.1,0.04654502]
[1740773572905,0.04993583,146.13,146.11,6.8449]
[1740773573110,0.04993583,146.13,146.1,0.04654502]
[1740773573400,0.04993583,146.13,146.12,6.8449]
[1740773574500,0.04993583,146.13,146.11,8.6727]
[1740773574705,0.04993583,146.13,146.11,1.8278]
[1740773575399,0.04993583,146.13,146.12,6.8449]
[1740773579504,12.58,146.15,146.14,6.8439]
[1740773579905,12.58,146.18,146.14,6.8439]
[1740773580307,12.58,146.18,146.15,6.8434]
[1740773580609,12.62866953,146.18,146.15,0.04842304]
[1740773583210,0.04866953,146.18,146.15,0.04842304]
[1740773583409,12.62866953,146.18,146.15,0.04842304]
[1740773583903,0.04866953,146.18,146.15,0.04842304]
[1740773584300,103.55532693,146.26,146.15,0.04842304]
[1740773584500,20.59693681,146.25,146.12,1.8877]
[1740773584708,1.17813681,146.24,146.12,1.8877]
[1740773584908,12.58,146.25,146.12,1.8877]
[1740773585708,0.04498058,146.2,146.17,0.04537172]
[1740773585910,12.58,146.25,146.17,0.04537172]
[1740773586301,103.55532693,146.26,146.17,0.04537172]
[1740773586607,219.06,146.27,146.14,12.58]
[1740773586811,6.8387,146.26,146.14,12.58]
[1740773587109,0.05043228,146.22,146.21,6.8403]
[1740773587301,6.8387,146.26,146.21,6.8403]
[1740773588215,219.06,146.27,146.19,12.58]
[1740773588408,103.55532693,146.29,146.22,0.0524581]
[1740773588409,0.043856,146.25,146.22,0.0524581]
[1740773588711,103.55532693,146.29,146.22,0.0524581]
[1740773589208,103.55532693,146.29,146.26,6.8381]
[1740773589713,103.60408134,146.29,146.26,6.88538847]
[1740773589913,0.04875441,146.29,146.26,0.04728847]
[1740773592608,12.62875441,146.29,146.26,0.04728847]
[1740773592814,6.8378,146.28,146.26,0.04728847]
[1740773593009,12.62875441,146.29,146.26,0.04728847]
[1740773594113,12.62875441,146.29,146.21,1.8465]
[1740773594316,1.858,146.28,146.21,1.8465]
[1740773595112,6.8379,146.27,146.21,8.6871]
[1740773595414,0.05044846,146.26,146.23,0.04567768]
[1740773597516,6.88904846,146.26,146.23,0.04567768]
[1740773597816,0.05044846,146.26,146.23,0.04567768]
[1740773598013,6.8392,146.25,146.23,0.04567768]
[1740773598215,0.05044846,146.26,146.23,0.04567768]
[1740773598819,6.8392,146.25,146.23,0.04567768]
[1740773599118,0.05044846,146.26,146.23,0.04567768]
[1740773599412,6.88904846,146.26,146.23,0.04567768]
[1740773599817,0.05044846,146.26,146.23,0.04567768]
[1740773600620,0.05044846,146.26,146.24,6.8392]
[1740773600814,0.05044846,146.26,146.23,0.04567768]
[1740773601214,0.05044846,146.26,146.25,6.8388]
[1740773601623,0.05044846,146.26,146.23,0.04567768]
[1740773601822,0.05044846,146.26,146.24,6.839]
[1740773602321,0.05044846,146.26,146.25,6.8388]
[1740773602519,12.58,146.29,146.23,0.04567768]
[1740773602918,12.58,146.29,146.25,6.8385]
[1740773603220,12.58,146.29,146.23,0.04567768]
[1740773603522,6.8377,146.28,146.23,0.04567768]
[1740773603724,0.05077031,146.27,146.23,0.04567768]
[1740773605316,6.8393,146.24,146.23,0.04567768]
[1740773605521,231.48,146.24,146.1,99.76932062]
[1740773605722,231.48,146.24,146.11,3.6509]
[1740773605923,6.8424,146.18,146.11,10.4962]
[1740773606726,0.0499305,146.16,146.13,0.04596764]
[1740773607321,6.8932305,146.16,146.13,0.04596764]
[1740773607526,0.0499305,146.16,146.13,0.04596764]
[1740773618831,0.0499305,146.16,146.15,6.8435]
[1740773620527,0.0499305,146.16,146.14,6.8437]
[1740773623624,0.0499305,146.16,146.13,0.04596764]
[1740773623830,12.58,146.15,146.13,0.04596764]
[1740773627037,12.58,146.15,146.13,6.89016764]
[1740773627334,12.58,146.15,146.13,0.04596764]
[1740773628236,19.4238,146.15,146.13,0.04596764]
[1740773630336,6.8439,146.14,146.13,0.04596764]
[1740773630537,12.58,146.15,146.13,0.04596764]
[1740773630840,19.4237,146.15,146.13,0.04596764]
[1740773631234,12.58,146.15,146.13,0.04596764]
[1740773632740,6.8439,146.14,146.13,0.04596764]
[1740773633034,12.58,146.15,146.13,0.04596764]
[1740773634039,19.4239,146.15,146.13,0.04596764]
[1740773634237,12.58,146.15,146.13,0.04596764]
[1740773634641,6.8439,146.14,146.13,0.04596764]
[1740773636337,12.58,146.15,146.13,0.04596764]
[1740773637037,6.8439,146.14,146.13,0.04596764]
[1740773641244,6.8456,146.11,146.08,1.9246]
[1740773641544,6.8456,146.11,146.07,1.8846]
[1740773641845,6.8464,146.09,146.04,6.8482]
[1740773642039,12.58,146.1,146.03,1.8731]
[1740773642245,0.04954496,146.07,146.05,0.04830195]
[1740773649942,219.18954496,146.07,146.0,6.8504]
[1740773650159,219.18954496,146.07,145.93,280.91718999]
[1740773650160,219.18954496,146.07,145.97,3.5937]
[1740773650347,219.14,146.07,145.97,3.5937]
[1740773650543,1.8971,146.06,145.97,3.5937]
[1740773650742,12.58,146.05,145.97,3.5937]
[1740773650939,6.8501,146.01,145.97,3.5937]
[1740773651141,12.58,146.0,145.97,1.7755]
[1740773651343,12.58,146.0,145.94,37.60499498]
[1740773651544,6.851,145.99,145.98,0.04654849]
[1740773652143,19.47698359,146.0,145.98,0.04654849]
[1740773652649,12.62638359,146.0,145.98,0.04654849]
[1740773653449,19.47718359,146.0,145.98,0.04654849]
[1740773653649,12.62638359,146.0,145.98,0.04654849]
[1740773653842,6.851,145.99,145.98,0.04654849]
[1740773654039,16.04638359,146.0,145.94,32.50079498]
[1740773654240,1.3045,145.98,145.93,60.44857938]
[1740773654446,6.8543,145.92,145.91,168.28567187]
[1740773654742,19.4343,145.92,145.91,168.28567187]
[1740773654951,6.8569,145.87,145.82,37.9295775]
[1740773655248,231.83132675,145.86,145.83,0.05211778]
[1740773655549,231.78,145.85,145.82,37.9295775]
[1740773655744,231.78,145.85,145.83,0.04732277]
[1740773659047,238.6377,145.85,145.83,0.04732277]
[1740773659242,231.78,145.85,145.83,0.04732277]
[1740773659547,6.858,145.84,145.83,0.04732277]
[1740773660642,238.6376,145.85,145.83,0.04732277]
[1740773661441,231.78,145.85,145.83,0.04732277]
[1740773662252,6.858,145.84,145.83,0.04732277]
[1740773662654,10.278,145.84,145.83,2.277e-05]
[1740773663147,17.44279369,145.84,145.83,2.277e-05]
[1740773663952,238.6376,145.85,145.83,2.277e-05]
[1740773664650,231.78,145.85,145.83,2.277e-05]
[1740773666251,238.6376,145.85,145.83,2.277e-05]
[1740773666752,238.6376,145.85,145.79,6.8603]
[1740773667150,231.78,145.85,145.74,3.8225]
[1740773667346,231.78,145.85,145.78,6.8607]
[1740773667652,238.6377,145.85,145.74,3.8225]
[1740773667848,0.0479842,145.83,145.81,6.8591]
[1740773668154,219.2,145.85,145.82,3.7722]
[1740773668554,219.2,145.85,145.82,3.7522]
[1740773669150,219.2514048,145.85,145.82,3.7522]
[1740773672261,219.2514048,145.85,145.81,1.9184]
[1740773672861,6.8581,145.84,145.81,1.9184]
[1740773673558,219.2514048,145.85,145.81,1.9184]
[1740773673763,6.8587,145.83,145.81,1.9184]
[1740773673961,6.8587,145.83,145.8,0.04736242]
[1740773674165,219.2514048,145.85,145.8,0.04736242]
[1740773674465,6.8594,145.81,145.8,0.04736242]
[1740773674661,19.4594,145.81,145.8,0.04736242]
[1740773675663,19.4594,145.81,145.8,6.242e-05]
[1740773679667,6.8603,145.8,145.72,1.8074]
[1740773680071,31.19670425,145.81,145.74,6.8626]
[1740773680369,31.19670425,145.81,145.72,1.8074]
[1740773680570,31.19670425,145.81,145.74,6.8625]
[1740773680771,0.04872801,145.78,145.75,0.05068062]
[1740773680972,0.04872801,145.78,145.75,0.03068062]
[1740773683271,6.90982801,145.78,145.75,0.03068062]
[1740773684172,0.04872801,145.78,145.75,0.03068062]
[1740773684874,18.67767189,145.77,145.75,0.03068062]
[1740773686464,25.53927189,145.77,145.75,0.03068062]
[1740773687370,6.8618,145.76,145.75,0.03068062]
[1740773688174,0.04872801,145.78,145.75,0.03068062]
[1740773688369,6.8615,145.77,145.75,0.03068062]
[1740773688565,0.04872801,145.78,145.75,0.03068062]
[1740773690374,75.31296504,145.76,145.66,3.7855]
[1740773690577,219.62,145.75,145.53,12.6]
[1740773690778,12.6,145.74,145.54,1.8348]
[1740773690974,6.8641,145.72,145.54,1.8348]